bitfinex-derivatives/quotes_SOLF0:USTF0_20250603
["timestamp","ask_amount","ask_price","bid_price","bid_amount"]
[1748944405324,2.59967938,159.96,159.95,6.2483]
[1748944405619,6.29343647,159.97,159.95,6.2483]
[1748944405822,6.29343647,159.97,159.94,6.29110771]
[1748944406914,0.04583647,159.97,159.94,0.04260771]
[1748944407622,6.2482,159.96,159.94,6.29120771]
[1748944407821,31.2,159.96,159.94,6.29120771]
[1748944408211,31.2,159.96,159.95,6.2484]
[1748944408621,0.04583647,159.97,159.94,5.83338385]
[1748944409226,0.04583647,159.97,159.96,6.248]
[1748944409421,2.64596386,159.97,159.96,6.248]
[1748944410019,0.04583647,159.97,159.96,6.248]
[1748944410522,0.04583647,159.97,159.94,5.83338385]
[1748944410523,2.64596386,159.97,159.95,6.2482]
[1748944411324,8.89376386,159.97,159.95,6.2482]
[1748944411626,2.64596386,159.97,159.94,12.08198385]
[1748944411827,6.248,159.96,159.94,12.08198385]
[1748944412031,2.64596386,159.97,159.94,12.08198385]
[1748944412529,8.89376386,159.97,159.95,6.2483]
[1748944413230,2.64596386,159.97,159.94,5.83338385]
[1748944413431,6.46387556,159.95,159.94,0.04260771]
[1748944413730,43.75227556,159.95,159.94,0.04260771]
[1748944423139,2.64596386,159.97,159.94,0.04260771]
[1748944424034,8.89386386,159.97,159.95,6.2484]
[1748944424837,2.64596386,159.97,159.94,0.04260771]
[1748944425537,8.89396386,159.97,159.95,6.2485]
[1748944429754,6.2482,159.96,159.94,0.04260771]
[1748944430760,8.89396386,159.97,159.94,6.29120771]
[1748944430956,2.64596386,159.97,159.94,6.29120771]
[1748944431257,8.89396386,159.97,159.94,6.29120771]
[1748944431459,8.89396386,159.97,159.95,6.2485]
[1748944431851,8.89396386,159.97,159.94,0.04260771]
[1748944432247,8.89396386,159.97,159.94,6.29130771]
[1748944437153,9.10983942,159.97,159.94,0.04260771]
[1748944437761,6.2486,159.95,159.94,0.04260771]
[1748944440058,12.71247556,159.95,159.94,0.04260771]
[1748944440261,2.64596386,159.97,159.94,0.04260771]
[1748944440451,2.64596386,159.97,159.96,6.2482]
[1748944440850,2.64596386,159.97,159.94,0.04260771]
[1748944441058,2.64596386,159.97,159.95,6.2484]
[1748944442368,2.64596386,159.97,159.96,6.2482]
[1748944450872,8.89386386,159.97,159.95,6.2485]
[1748944452669,6.2482,159.96,159.94,12.08923738]
[1748944452880,2.64596386,159.97,159.94,5.84033738]
[1748944453063,6.46387556,159.96,159.94,0.04260771]
[1748944453376,6.2486,159.95,159.94,0.04260771]
[1748944455871,2.64596386,159.97,159.94,0.04260771]
[1748944456078,2.64596386,159.97,159.94,5.84134537]
[1748944457573,2.64596386,159.97,159.96,6.2482]
[1748944458765,31.04,160.01,160.0,6.2466]
[1748944461972,0.04636152,160.02,159.99,0.04187094]
[1748944461973,0.04636152,160.02,160.01,6.2462]
[1748944465980,6.29216152,160.02,160.0,6.2465]
[1748944466280,0.04636152,160.02,159.99,0.04187094]
[1748944467781,6.2465,160.01,159.99,0.04187094]
[1748944468284,6.2466,160.0,159.99,0.04187094]
[1748944478091,37.2664,160.01,159.99,0.04187094]
[1748944478384,37.2664,160.01,159.99,6.28877094]
[1748944478891,37.2664,160.01,159.99,0.04187094]
[1748944479390,6.2466,160.0,159.99,0.04187094]
[1748944485489,37.2664,160.01,159.99,0.04187094]
[1748944486190,6.2466,160.0,159.99,0.04187094]
[1748944486881,37.2664,160.01,159.99,0.04187094]
[1748944487289,37.2664,160.01,159.99,6.28887094]
[1748944487797,0.04636152,160.02,159.99,0.04187094]
[1748944488389,0.04636152,160.02,160.01,6.2462]
[1748944489196,0.04636152,160.02,160.01,11.46975635]
[1748944492800,0.04636152,160.02,160.01,6.2462]
[1748944493001,0.04636152,160.02,160.01,11.46736201]
[1748944496701,0.04636152,160.02,160.01,6.2462]
[1748944496903,0.04636152,160.02,160.01,11.46774154]
[1748944503205,0.04636152,160.02,160.01,11.4684982]
[1748944503906,0.04636152,160.02,160.01,5.2222982]
[1748944505097,6.29216152,160.02,160.01,5.2222982]
[1748944507008,6.29216152,160.02,160.01,5.22216543]
[1748944511701,6.2466,160.0,159.99,0.04187094]
[1748944511901,6.2466,160.0,159.99,5.26785281]
[1748944512203,37.2466,160.0,159.99,5.26785281]
[1748944512707,37.2466,160.0,159.99,0.04187094]
[1748944517612,37.2466,160.0,159.99,5.26624673]
[1748944518712,37.2466,160.0,159.99,5.26632267]
[1748944522610,37.2466,160.0,159.99,5.26507493]
[1748944524519,31.0,160.0,159.99,5.26507493]
[1748944525119,37.2466,160.0,159.99,5.26507493]
[1748944526216,31.0,160.0,159.99,11.51207493]
[1748944526413,31.0,160.0,159.99,6.28887094]
[1748944526621,31.0,160.0,159.99,11.51318686]
[1748944528614,6.29236152,160.02,160.0,6.2466]
[1748944528814,6.29236152,160.02,160.01,5.22431592]
[1748944530324,6.29236152,160.02,160.01,5.22495213]
[1748944533727,0.04636152,160.02,160.01,5.22495213]
[1748944534229,0.04636152,160.02,160.01,5.22556157]
[1748944535633,6.29216152,160.02,160.01,5.22556157]
[1748944536533,0.04636152,160.02,160.01,15.61172126]
[1748944538732,0.04636152,160.02,160.01,5.22556157]
[1748944538931,4.18632121,160.02,160.01,5.22556157]
[1748944539131,10.43212121,160.02,160.01,5.22556157]
[1748944539824,6.29216152,160.02,160.01,5.22556157]
[1748944540325,0.04636152,160.02,160.01,5.22556157]
[1748944543032,0.04636152,160.02,160.01,11.47176157]
[1748944546327,0.04636152,160.02,160.01,11.46992357]
[1748944547729,31.0,160.06,160.01,17.46085917]
[1748944547929,31.0,160.06,160.02,5.22372357]
[1748944548129,31.0,160.06,160.03,5.22372357]
[1748944548330,31.0,160.06,160.04,5.22372357]
[1748944548530,31.0,160.06,160.01,12.2371356]
[1748944548731,31.0,160.06,160.02,5.26169508]
[1748944548939,6.2447,160.05,160.03,5.22226296]
[1748944549139,6.2447,160.05,160.04,5.22226296]
[1748944549532,6.2455,160.03,160.02,0.03943212]
[1748944549734,6.2455,160.03,160.02,5.26280498]
[1748944553645,6.2455,160.03,160.02,5.26264731]
[1748944556338,31.0,160.06,160.02,5.26264731]
[1748944556539,31.0,160.06,160.03,5.22321519]
[1748944556744,31.0,160.06,160.04,5.22321519]
[1748944556946,31.0,160.06,160.03,6.2453]
[1748944557146,31.0,160.06,160.04,5.22153067]
[1748944557441,31.0,160.06,160.05,5.22134436]
[1748944557442,37.2443,160.06,160.05,5.22134436]
[1748944560851,37.2443,160.06,160.05,5.21811662]
[1748944563052,31.0,160.06,160.05,5.21811662]
[1748944563252,31.0,160.06,160.05,11.46281662]
[1748944563558,539.84,160.08,160.05,11.46281662]
[1748944563760,570.84,160.08,160.06,5.21811662]
[1748944563952,570.84,160.08,160.05,6.28629487]
[1748944564255,6.2441,160.07,160.06,5.21620818]
[1748944564459,31.0,160.11,160.06,11.68394394]
[1748944564663,31.0,160.11,160.07,5.21620818]
[1748944564851,31.0,160.11,160.08,5.21620818]
[1748944565052,31.0,160.11,160.05,0.04159487]
[1748944565248,6.2441,160.07,160.06,5.2135053]
[1748944567758,6.2443,160.06,160.05,0.04159487]
[1748944567956,6.2443,160.06,160.05,5.25714323]
[1748944571565,6.2443,160.06,160.05,5.25439732]
[1748944572765,30.98,160.07,160.05,5.25439732]
[1748944572955,30.98,160.07,160.06,5.21280245]
[1748944573356,37.2239,160.07,160.06,5.21280245]
[1748944574463,6.2439,160.07,160.06,5.21280245]
[1748944575568,6.2439,160.07,160.06,5.21092046]
[1748944578271,6.2437,160.08,160.06,5.21087418]
[1748944578465,6.2437,160.08,160.05,6.28629487]
[1748944578666,30.98,160.09,160.06,5.21084691]
[1748944578870,6.2443,160.06,160.05,0.04159487]
[1748944579166,6.2443,160.06,160.05,5.25238129]
[1748944579471,6.2443,160.06,160.05,5.25236374]
[1748944581166,6.244,160.07,160.05,5.25236374]
[1748944581466,6.244,160.07,160.06,5.21076887]
[1748944583167,10.38131058,160.07,160.06,5.21076887]
[1748944583375,6.2443,160.06,160.05,0.04159487]
[1748944583572,10.38161058,160.06,160.05,0.04159487]
[1748944587377,12.71290843,160.06,160.05,0.04159487]
[1748944588077,6.2465,160.01,159.99,5.76527408]
[1748944588978,6.46860843,160.02,159.97,12.01287408]
[1748944589170,0.04332757,160.01,159.98,0.04039646]
[1748944589371,6.247,160.0,159.98,0.04039646]
[1748944590280,6.247,159.99,159.98,0.04039646]
[1748944592065,6.2468,160.0,159.98,0.04039646]
[1748944592569,6.28972757,160.01,159.98,0.04039646]
[1748944593474,0.04332757,160.01,159.98,0.04039646]
[1748944593679,0.04332757,160.01,159.98,6.50900489]
[1748944593978,0.04332757,160.01,160.0,6.2466]
[1748944596380,0.04332757,160.01,160.0,12.71520843]
[1748944597976,0.04332757,160.01,160.0,6.2466]
[1748944598281,0.04332757,160.01,159.99,6.2469]
[1748944598481,0.04332757,160.01,159.98,0.04039646]
[1748944598686,0.04332757,160.01,160.0,6.2466]
[1748944598879,0.04332757,160.01,160.0,11.45962559]
[1748944599985,0.04332757,160.01,160.0,6.2466]
[1748944607978,0.04332757,160.01,159.98,0.04039646]
[1748944609286,6.2466,160.0,159.98,0.04039646]
[1748944609475,0.04332757,160.01,159.98,0.04039646]
[1748944609891,6.247,159.99,159.98,0.04039646]
[1748944611185,6.2468,160.0,159.98,0.04039646]
[1748944613088,6.247,159.99,159.98,0.04039646]
[1748944615890,31.02332757,160.01,159.98,0.04039646]
[1748944615891,0.04332757,160.01,159.98,6.50900489]
[1748944617188,0.04332757,160.01,160.0,6.2466]
[1748944617391,0.04332757,160.01,160.0,11.46532677]
[1748944618288,0.04332757,160.01,160.0,11.46578005]
[1748944620792,0.04332757,160.01,160.0,6.2466]
[1748944622494,0.04332757,160.01,160.0,11.46890362]
[1748944623586,30.98,160.07,160.0,17.45550117]
[1748944623795,37.44860843,160.07,160.01,5.22230362]
[1748944623987,37.44860843,160.07,160.02,5.22230362]
[1748944624187,37.44860843,160.07,160.03,5.22230362]
[1748944624489,37.44860843,160.07,160.03,0.0431346]
[1748944624889,6.2451,160.04,160.03,0.0431346]
[1748944625093,6.2451,160.04,160.03,5.26930962]
[1748944625785,539.76,160.22,160.03,42.71729101]
[1748944626084,539.76,160.22,160.07,6.46860843]
[1748944626085,6.46860843,160.16,160.07,6.46860843]
[1748944626290,6.2414,160.14,160.1,0.04622616]
[1748944626891,6.2409,160.15,160.11,5.21534044]
[1748944627097,6.2409,160.15,160.1,0.04622616]
[1748944627284,6.2409,160.15,160.11,5.21524178]
[1748944627491,12.70910843,160.16,160.1,0.04622616]
[1748944627885,6.2409,160.15,160.12,6.2417]
[1748944628899,6.2412,160.14,160.11,6.2422]
[1748944629289,34.14190932,160.17,160.1,0.04622616]
[1748944629489,34.14190932,160.17,160.12,6.2417]
[1748944629794,6.241,160.15,160.12,6.2417]
[1748944630198,6.241,160.15,160.1,0.04622616]
[1748944630199,6.46860843,160.16,160.1,0.04622616]
[1748944631891,6.2418,160.13,160.1,0.04622616]
[1748944632196,6.2418,160.13,160.1,6.28892616]
[1748944633198,40.61051775,160.17,160.1,0.04622616]
[1748944633896,6.2412,160.14,160.11,6.2422]
[1748944636393,6.2409,160.15,160.12,6.2419]
[1748944636594,40.61051775,160.17,160.1,0.04622616]
[1748944637096,40.61051775,160.17,160.11,8.82221926]
[1748944637399,40.61051775,160.17,160.11,6.2421]
[1748944638495,6.2412,160.14,160.11,6.2421]
[1748944639703,32.06710932,160.17,160.12,6.2418]
[1748944640302,6.241,160.15,160.12,6.2418]
[1748944641910,6.2412,160.14,160.12,6.2418]
[1748944643410,6.2412,160.14,160.11,12.71080843]
[1748944643704,6.2412,160.14,160.12,2.57853667]
[1748944643911,6.2412,160.14,160.11,12.71080843]
[1748944644208,6.2412,160.14,160.12,6.2419]
[1748944644403,32.06710932,160.17,160.12,6.2419]
[1748944645005,6.2413,160.14,160.12,6.2419]
[1748944646512,32.06710932,160.17,160.12,6.2419]
[1748944647598,32.06710932,160.17,160.1,0.04622616]
[1748944647909,6.46860843,160.13,160.1,0.04622616]
[1748944648203,6.2423,160.11,160.1,0.04622616]
[1748944648805,6.2423,160.11,160.01,31.1]
[1748944648806,6.46860843,160.11,160.01,31.1]
[1748944649015,6.46860843,160.07,160.01,31.1]
[1748944649217,6.46860843,160.07,159.98,37.56860843]
[1748944649506,6.46860843,160.07,160.0,6.2463]
[1748944649806,6.2456,160.03,160.02,0.04211748]
[1748944650910,6.2456,160.03,160.02,2.62488148]
[1748944651303,6.2456,160.03,160.02,5.20761879]
[1748944653010,6.2456,160.03,160.02,7.79003293]
[1748944653211,6.2456,160.03,160.02,7.78931852]
[1748944653409,6.2456,160.03,160.02,5.20761879]
[1748944654713,12.71420843,160.03,160.02,5.20761879]
[1748944658915,6.247,159.99,159.95,30.98]
[1748944659713,6.46860843,160.0,159.95,30.98]
[1748944659912,0.04777784,159.99,159.96,0.03989961]
[1748944661310,0.04777784,159.99,159.97,6.2476]
[1748944662719,0.04777784,159.99,159.96,0.03989961]
[1748944664015,0.04777784,159.99,159.97,6.2476]
[1748944664417,0.04777784,159.99,159.96,0.03989961]
[1748944664614,0.04777784,159.99,159.97,6.2475]
[1748944664815,0.04777784,159.99,159.96,0.03989961]
[1748944666215,0.04777784,159.99,159.98,6.2474]
[1748944671018,6.29487784,159.99,159.97,6.2476]
[1748944671721,0.04777784,159.99,159.96,6.28799961]
[1748944672116,0.04777784,159.99,159.96,0.03989961]
[1748944672316,6.29497784,159.99,159.96,0.03989961]
[1748944672813,6.2477,159.98,159.96,0.03989961]
[1748944673616,6.2478,159.97,159.96,0.03989961]
[1748944675223,6.51638627,159.99,159.96,6.28779961]
[1748944675826,6.2476,159.98,159.96,0.03989961]
[1748944676026,6.51638627,159.99,159.96,0.03989961]
[1748944676221,6.2474,159.98,159.96,0.03989961]
[1748944676426,6.51638627,159.99,159.96,0.03989961]
[1748944677020,12.71640843,159.97,159.96,0.03989961]
[1748944679319,6.2488,159.95,159.89,31.0]
[1748944679524,6.46860843,159.94,159.89,31.0]
[1748944679729,6.46860843,159.94,159.91,6.2499]
[1748944680025,12.71760843,159.94,159.91,6.2499]
[1748944680327,6.51428375,159.94,159.91,0.04283921]
[1748944680721,12.76348375,159.94,159.91,0.04283921]
[1748944681122,6.51428375,159.94,159.91,0.04283921]
[1748944681325,6.46860843,159.92,159.91,0.04283921]
[1748944681523,6.46860843,159.92,159.91,6.29293921]
[1748944683819,12.71830843,159.92,159.91,0.04283921]
[1748944684225,43.71830843,159.92,159.91,0.04283921]
[1748944684731,37.46860843,159.92,159.84,110.35315664]
[1748944684931,6.46860843,159.89,159.87,6.2514]
[1748944686128,6.46860843,159.89,159.86,6.29544123]
[1748944686431,12.71950843,159.89,159.86,0.04344123]
[1748944686934,6.46860843,159.89,159.86,0.04344123]
[1748944687122,6.46860843,159.87,159.86,6.29554123]
[1748944687920,6.46860843,159.89,159.88,6.2511]
[1748944688730,6.46860843,159.89,159.86,0.04344123]
[1748944689129,0.0476836,159.9,159.86,0.04344123]
[1748944690628,0.0476836,159.9,159.89,6.2509]
[1748944691638,0.0476836,159.9,159.88,6.2511]
[1748944691939,6.51629203,159.9,159.86,0.04344123]
[1748944692122,6.51629203,159.9,159.89,6.2509]
[1748944702449,0.0476836,159.9,159.89,6.2509]
[1748944703148,31.0,159.95,159.94,6.249]
[1748944703542,6.46860843,159.97,159.96,6.2482]
[1748944703745,31.0,159.98,159.96,6.2482]
[1748944704042,31.0,159.98,159.91,6.46860843]
[1748944704043,31.0,159.98,159.95,0.04239615]
[1748944704545,37.2476,159.98,159.95,6.29089615]
[1748944704747,43.71620843,159.98,159.95,6.29089615]
[1748944705852,6.2479,159.97,159.95,0.04239615]
[1748944706942,37.46860843,159.98,159.95,0.04239615]
[1748944707144,31.0,159.98,159.95,0.04239615]
[1748944707451,31.0,159.98,159.96,6.2479]
[1748944707654,31.0,159.98,159.95,0.04239615]
[1748944707856,6.50879899,159.99,159.95,0.04239615]
[1748944708050,6.50879899,159.99,159.97,6.2475]
[1748944708647,12.75579899,159.99,159.97,6.2475]
[1748944710047,12.75579899,159.99,159.96,6.248]
[1748944710048,6.2474,159.98,159.96,6.248]
[1748944711257,6.2474,159.98,159.95,6.29079615]
[1748944711957,12.75599899,159.99,159.96,6.2481]
[1748944713052,6.50879899,159.99,159.97,6.2475]
[1748944713550,0.04019056,159.99,159.98,6.2474]
[1748944714457,0.04019056,159.99,159.97,6.2476]
[1748944715044,0.04019056,159.99,159.95,0.04239615]
[1748944715656,0.04019056,159.99,159.97,6.2475]
[1748944715864,0.04019056,159.99,159.95,0.04239615]
[1748944716354,0.04019056,159.99,159.97,6.2476]
[1748944716355,6.28729056,159.99,159.97,6.2476]
[1748944717055,0.04019056,159.99,159.97,6.2476]
[1748944718655,6.28719056,159.99,159.97,6.2476]
[1748944719962,0.04019056,159.99,159.98,6.2474]
[1748944721670,0.04019056,159.99,159.96,2.173]
[1748944721853,0.04019056,159.99,159.95,0.04239615]
[1748944722161,6.46860843,159.98,159.95,0.04239615]
[1748944722365,6.2478,159.97,159.95,0.04239615]
[1748944722557,6.46860843,159.98,159.95,0.04239615]
[1748944722760,6.2482,159.96,159.95,0.04239615]
[1748944722958,12.71680843,159.96,159.95,0.04239615]
[1748944725359,6.46860843,159.96,159.95,0.04239615]
[1748944725960,12.71650843,159.97,159.95,0.04239615]
[1748944726156,0.04019056,159.99,159.95,0.04239615]
[1748944726361,6.50879899,159.99,159.95,0.04239615]
[1748944726964,6.2474,159.98,159.95,6.29069615]
[1748944727562,6.50879899,159.99,159.95,6.29069615]
[1748944727766,12.75609899,159.99,159.96,6.2481]
[1748944727962,12.75609899,159.99,159.95,0.04239615]
[1748944727963,6.50879899,159.99,159.95,0.04239615]
[1748944728269,6.2474,159.98,159.95,6.29079615]
[1748944728867,12.75599899,159.99,159.96,6.2482]
[1748944729760,12.75599899,159.99,159.95,0.04239615]
[1748944729761,6.2474,159.98,159.95,6.29079615]
[1748944730268,0.04019056,159.99,159.95,6.29079615]
[1748944730470,6.50879899,159.99,159.95,6.29079615]
[1748944730972,6.2474,159.98,159.95,6.29079615]
[1748944733371,6.2478,159.97,159.95,0.04239615]
[1748944735376,6.2478,159.97,159.95,6.29089615]
[1748944736074,6.2478,159.97,159.95,0.04239615]
[1748944740279,6.50879899,159.99,159.95,0.04239615]
[1748944740785,6.2482,159.96,159.95,0.04239615]
[1748944761590,12.71680843,159.96,159.95,0.04239615]
[1748944762192,6.2491,159.94,159.91,6.25]
[1748944763187,6.29049852,159.94,159.91,6.29098394]
[1748944764490,6.2496,159.93,159.91,0.04098394]
[1748944765593,6.29059852,159.94,159.91,6.29108394]
[1748944766089,6.2494,159.93,159.91,6.29108394]
[1748944766389,0.04139852,159.94,159.91,0.04098394]
[1748944766598,0.04139852,159.94,159.92,6.46860843]
[1748944766889,0.04139852,159.94,159.93,6.2494]
[1748944767193,0.04139852,159.94,159.93,10.39228697]
[1748944769194,0.04139852,159.94,159.93,6.2494]
[1748944771793,37.45344758,159.99,159.96,6.2481]
[1748944772387,37.45344758,159.99,159.95,6.2484]
[1748944772591,37.45344758,159.99,159.93,2.1482]
[1748944772895,6.2481,159.97,159.94,0.04285865]
[1748944773089,6.2481,159.97,159.94,6.29165865]
[1748944773794,0.0436118,159.98,159.94,0.04285865]
[1748944774188,6.2484,159.96,159.94,6.29175865]
[1748944776697,6.2484,159.96,159.94,0.04285865]
[1748944778893,6.2486,159.95,159.94,0.04285865]
[1748944781499,0.0436118,159.98,159.94,6.29175865]
[1748944781698,0.0436118,159.98,159.94,0.04285865]
[1748944782397,6.51705938,159.98,159.94,0.04285865]
[1748944783198,6.2486,159.95,159.94,0.04285865]
[1748944791200,10.39284051,159.95,159.94,0.04285865]
[1748944795801,41.37284051,159.95,159.94,0.04285865]
[1748944796208,6.2499,159.92,159.89,49.17546316]
[1748944796408,4.14424051,159.93,159.89,14.05122265]
[1748944796607,4.14424051,159.93,159.89,12.02802265]
[1748944797104,6.2499,159.92,159.89,12.02802265]
[1748944797411,6.291837,159.92,159.89,12.07381397]
[1748944798503,6.291837,159.92,159.89,6.29639132]
[1748944799615,0.041937,159.92,159.9,6.2505]
[1748944799811,0.041937,159.92,159.89,9.96846117]
[1748944800214,0.041937,159.92,159.91,6.2501]
[1748944800605,0.041937,159.92,159.91,10.39434051]
[1748944800822,4.2901,159.98,159.95,6.2484]
[1748944800823,6.2479,159.97,159.95,6.2484]
[1748944801202,35.12424051,159.98,159.95,6.2484]
[1748944801408,30.98,159.98,159.95,6.2484]
[1748944801608,4.14424051,159.98,159.95,6.2484]
[1748944801805,4.14424051,159.98,159.95,6.28822555]
[1748944801806,10.43750708,159.98,159.95,6.28822555]
[1748944802214,4.14424051,159.96,159.95,0.03982555]
[1748944802518,10.39244051,159.96,159.95,0.03982555]
[1748944803616,4.14424051,159.96,159.95,6.28842555]
[1748944803915,4.14424051,159.97,159.95,0.03982555]
[1748944804114,4.14424051,159.97,159.95,6.28822555]
[1748944804921,10.39224051,159.97,159.95,6.28822555]
[1748944805213,4.14424051,159.97,159.95,6.28822555]
[1748944805610,4.14424051,159.97,159.95,0.03982555]
[1748944806214,4.14424051,159.96,159.95,0.03982555]
[1748944807415,10.39244051,159.96,159.95,0.03982555]
[1748944807719,4.14424051,159.96,159.91,5.77805967]
[1748944807916,4.14424051,159.96,159.89,7.63393655]
[1748944807917,4.14424051,159.92,159.9,5.77805967]
[1748944809316,0.04021296,159.93,159.91,6.2498]
[1748944810118,0.04021296,159.93,159.92,6.2497]
[1748944810507,0.04021296,159.93,159.91,6.25]
[1748944811319,0.04021296,159.93,159.92,6.2497]
[1748944813118,0.04021296,159.93,159.91,12.03138498]
[1748944813325,0.04021296,159.93,159.91,5.78148498]
[1748944813625,0.04021296,159.93,159.92,6.2497]
[1748944813825,0.04021296,159.93,159.92,12.03055036]
[1748944814917,0.04021296,159.93,159.92,6.2497]
[1748944816225,0.04021296,159.93,159.92,12.03055036]
[1748944816421,0.04021296,159.93,159.92,6.2497]
[1748944816728,0.04021296,159.93,159.92,12.03055036]
[1748944817426,0.04021296,159.93,159.92,12.03020644]
[1748944821432,0.04021296,159.93,159.92,12.03238064]
[1748944822729,0.04021296,159.93,159.92,6.2497]
[1748944823027,0.04021296,159.93,159.92,12.03238064]
[1748944823431,0.04021296,159.93,159.91,12.03268064]
[1748944824025,0.04021296,159.93,159.91,5.78268064]
[1748944824221,6.28981296,159.93,159.91,5.78268064]
[1748944824524,6.28981296,159.93,159.89,5.82520714]
[1748944824525,6.51655589,159.93,159.89,5.82520714]
[1748944824731,6.2505,159.9,159.89,5.82520714]
[1748944825027,6.51655589,159.93,159.89,0.0425265]
[1748944825428,6.2503,159.91,159.89,0.0425265]
[1748944825625,6.47634293,159.91,159.89,0.0425265]
[1748944825832,12.72674293,159.91,159.89,0.0425265]
[1748944827228,6.47634293,159.91,159.89,0.0425265]
[1748944827422,0.04021296,159.93,159.89,0.0425265]
[1748944827626,0.04021296,159.93,159.89,5.82975379]
[1748944828430,0.04021296,159.93,159.92,6.2497]
[1748944842233,0.04021296,159.93,159.91,6.2501]
[1748944842937,0.04021296,159.93,159.9,5.77752952]
[1748944843233,0.04021296,159.93,159.89,0.0425265]
[1748944843234,0.04021296,159.93,159.91,9.92163181]
[1748944843636,4.18431525,159.93,159.9,5.77752952]
[1748944844239,10.43371525,159.93,159.9,6.2503]
[1748944844532,4.14410229,159.91,159.89,0.0425265]
[1748944844737,4.14410229,159.9,159.89,0.0425265]
[1748944845332,6.47986273,159.91,159.89,0.0425265]
[1748944845533,6.2505,159.9,159.89,0.0425265]
[1748944846438,12.73016273,159.91,159.89,0.0425265]
[1748944846737,30.96,159.92,159.89,0.0425265]
[1748944846939,0.04021296,159.93,159.89,0.0425265]
[1748944847836,0.04021296,159.93,159.89,5.82527246]
[1748944848438,0.04021296,159.93,159.92,6.2497]
[1748944858841,0.04021296,159.93,159.9,12.03197639]
[1748944859043,0.04021296,159.93,159.9,5.78177639]
[1748944859240,6.2499,159.92,159.9,5.78177639]
[1748944859438,6.2499,159.92,159.9,6.2503]
[1748944859642,0.04021296,159.93,159.89,5.82430289]
[1748944859838,6.28981296,159.93,159.89,5.82430289]
[1748944860044,6.28981296,159.93,159.91,6.2501]
[1748944860349,0.04021296,159.93,159.89,5.825616]
[1748944860648,0.04021296,159.93,159.92,6.2497]
[1748944862341,0.04021296,159.93,159.9,5.7830895]
[1748944862652,12.72986273,159.92,159.89,5.82213159]
[1748944862950,6.2505,159.9,159.89,0.0425265]
[1748944863152,12.73036273,159.9,159.89,0.0425265]
[1748944863649,6.2505,159.9,159.89,0.0425265]
[1748944864646,37.43986273,159.91,159.89,0.0425265]
[1748944866048,37.43986273,159.91,159.89,6.2934265]
[1748944866446,37.43986273,159.91,159.89,0.0425265]
[1748944866951,37.43986273,159.91,159.9,6.2505]
[1748944876356,30.96,159.91,159.9,6.2505]
[1748944878053,0.04021296,159.93,159.92,6.2497]
[1748944879752,4.0972,159.99,159.92,5.78219214]
[1748944879753,30.96,159.99,159.92,5.78219214]
[1748944879942,30.96,159.99,159.95,6.47986273]
[1748944880855,30.9997234,159.99,159.98,6.2474]
[1748944881451,0.0397234,159.99,159.97,6.2476]
[1748944882252,0.0397234,159.99,159.98,6.2474]
[1748944882944,0.0397234,159.99,159.97,6.2477]
[1748944883148,0.0397234,159.99,159.95,6.52474379]
[1748944883843,0.0397234,159.99,159.95,0.04488106]
[1748944884050,6.2868234,159.99,159.96,6.2479]
[1748944884544,0.0397234,159.99,159.95,0.04488106]
[1748944885057,6.248,159.97,159.95,0.04488106]
[1748944885454,6.47986273,159.98,159.95,0.04488106]
[1748944885854,6.2478,159.97,159.95,0.04488106]
[1748944886555,6.2482,159.96,159.95,0.04488106]
[1748944886755,30.94,159.97,159.95,0.04488106]
[1748944886952,37.1881,159.97,159.95,0.04488106]
[1748944887957,6.2482,159.96,159.95,0.04488106]
[1748944893257,30.94,159.97,159.95,0.04488106]
[1748944893863,6.2482,159.96,159.95,0.04488106]
[1748944894057,30.94,159.97,159.95,0.04488106]
[1748944894463,37.188,159.97,159.95,0.04488106]
[1748944895463,6.2482,159.96,159.95,0.04488106]
[1748944896871,37.1879,159.97,159.95,0.04488106]
[1748944899568,6.2482,159.96,159.95,0.04488106]
[1748944903962,6.47986273,159.96,159.88,38.72715047]
[1748944904163,6.47986273,159.96,159.88,6.2511]
[1748944904467,6.2505,159.91,159.88,6.2511]
[1748944904777,6.2505,159.91,159.89,6.2509]
[1748944905166,6.29787052,159.92,159.89,6.2509]
[1748944906665,6.29787052,159.92,159.88,0.04529728]
[1748944906666,0.04797052,159.92,159.9,6.2504]
[1748944907366,0.04797052,159.92,159.88,0.04529728]
[1748944907367,0.04797052,159.92,159.91,6.2501]
[1748944920385,30.94,159.96,159.95,6.2486]
[1748944920581,30.94,159.96,159.91,12.24984269]
[1748944920890,30.94,159.96,159.91,12.25079224]
[1748944921480,0.04597575,159.95,159.94,6.2487]